bitfinex-derivatives/quotes_SOLF0:USTF0_20260310
["timestamp","ask_amount","ask_price","bid_price","bid_amount"]
[1773115413886,5.69948015,85.705,85.661,10.505]
[1773115414085,5.69948015,85.703,85.661,10.505]
[1773115414288,5.69948015,85.701,85.661,10.505]
[1773115414589,4.53965686,85.7,85.661,10.505]
[1773115414780,5.69948015,85.698,85.661,10.505]
[1773115414980,4.53965686,85.697,85.661,10.505]
[1773115415191,4.53965686,85.696,85.661,10.505]
[1773115415391,4.53965686,85.695,85.661,10.505]
[1773115415590,4.53965686,85.694,85.661,10.505]
[1773115415787,4.53965686,85.693,85.661,10.505]
[1773115415983,4.53965686,85.692,85.661,10.505]
[1773115416189,5.69948015,85.713,85.662,5.68034272]
[1773115416394,10.499,85.711,85.662,5.68034272]
[1773115416598,5.69948015,85.709,85.662,5.68034272]
[1773115416890,10.24209984,85.708,85.662,5.68034272]
[1773115417090,10.24209984,85.707,85.665,10.505]
[1773115417291,4.54261969,85.706,85.665,10.505]
[1773115417483,4.54261969,85.705,85.665,10.505]
[1773115417685,4.54261969,85.704,85.665,10.505]
[1773115417891,4.54261969,85.703,85.665,10.505]
[1773115418092,4.54261969,85.702,85.665,10.505]
[1773115418290,4.54261969,85.701,85.665,10.505]
[1773115418489,5.69948015,85.707,85.665,10.505]
[1773115418689,4.54376071,85.706,85.665,10.505]
[1773115418891,4.54376071,85.705,85.665,10.505]
[1773115419184,4.54376071,85.704,85.665,10.505]
[1773115419390,4.54376071,85.703,85.665,10.505]
[1773115419591,4.54376071,85.702,85.665,10.505]
[1773115419790,4.54376071,85.701,85.665,10.505]
[1773115420090,4.54376071,85.7,85.665,10.505]
[1773115420290,4.54434741,85.699,85.662,5.68034272]
[1773115420491,4.54370829,85.698,85.662,5.68034272]
[1773115420695,4.54370829,85.697,85.662,5.68034272]
[1773115420994,10.24318844,85.696,85.654,10.506]
[1773115421197,4.54370829,85.695,85.654,10.506]
[1773115421494,4.54370829,85.694,85.654,10.506]
[1773115421686,4.54370829,85.693,85.654,10.506]
[1773115421884,4.54370829,85.692,85.654,10.506]
[1773115422088,4.54370829,85.691,85.657,5.68034272]
[1773115422291,4.54370829,85.69,85.657,5.68034272]
[1773115422490,4.54370829,85.689,85.657,5.68034272]
[1773115422691,5.69948015,85.696,85.657,5.68034272]
[1773115422692,4.54370829,85.688,85.657,5.68034272]
[1773115422996,4.54358603,85.687,85.661,5.68034272]
[1773115423194,5.69948015,85.708,85.661,5.68034272]
[1773115423395,4.54474434,85.707,85.661,5.68034272]
[1773115423595,4.54474434,85.706,85.661,5.68034272]
[1773115423787,4.54474434,85.705,85.661,5.68034272]
[1773115423991,5.69948015,85.708,85.661,5.68034272]
[1773115423992,4.54474434,85.704,85.661,5.68034272]
[1773115424187,4.54474434,85.703,85.661,5.68034272]
[1773115424391,4.54474434,85.702,85.662,16.18534272]
[1773115424592,5.69948015,85.708,85.663,5.68034272]
[1773115424593,4.54474434,85.701,85.663,5.68034272]
[1773115424896,4.54474434,85.7,85.663,5.68034272]
[1773115425095,4.54474434,85.699,85.664,10.505]
[1773115425292,4.54474434,85.698,85.664,10.505]
[1773115425498,4.54474434,85.697,85.664,10.505]
[1773115425698,4.54474434,85.696,85.664,10.505]
[1773115425896,4.54474434,85.695,85.664,16.18534272]
[1773115426197,4.54474434,85.694,85.664,16.18534272]
[1773115426394,4.54597348,85.693,85.671,10.504]
[1773115426698,5.69948015,85.708,85.665,5.68034272]
[1773115426898,4.54499337,85.707,85.665,5.68034272]
[1773115427099,4.54499337,85.706,85.665,5.68034272]
[1773115427298,4.54499337,85.705,85.665,5.68034272]
[1773115427495,4.54499337,85.704,85.665,5.68034272]
[1773115427696,4.54499337,85.703,85.665,5.68034272]
[1773115427896,4.54499337,85.702,85.665,5.68034272]
[1773115428098,4.54499337,85.701,85.665,5.68034272]
[1773115428299,5.69948015,85.699,85.652,5.68034272]
[1773115428501,5.69948015,85.697,85.652,5.68034272]
[1773115428697,4.54499337,85.696,85.652,5.68034272]
[1773115428901,4.54499337,85.695,85.652,5.68034272]
[1773115429195,4.54499337,85.694,85.652,5.68034272]
[1773115429401,4.54499337,85.693,85.66,4.88004907]
[1773115429602,4.54499337,85.692,85.661,5.68034272]
[1773115429792,4.54499337,85.691,85.661,5.68034272]
[1773115429991,4.54499337,85.69,85.661,5.68034272]
[1773115430206,4.54499337,85.689,85.661,5.68034272]
[1773115430494,4.54499337,85.688,85.662,5.89306067]
[1773115430702,4.54499337,85.687,85.662,5.89306067]
[1773115430999,4.54499337,85.686,85.662,5.89306067]
[1773115431196,4.54499337,85.685,85.662,5.89306067]
[1773115431401,4.54499337,85.684,85.663,10.505]
[1773115431701,4.54499337,85.683,85.663,10.505]
[1773115431902,4.54499337,85.682,85.663,10.505]
[1773115432200,4.55847333,85.681,85.663,16.39806067]
[1773115432502,5.98757275,85.709,85.664,5.89306067]
[1773115433713,5.98757275,85.709,85.666,10.505]
[1773115433915,5.98757275,85.709,85.667,5.89306067]
[1773115437120,5.98757275,85.699,85.655,5.89306067]
[1773115438519,5.98757275,85.699,85.659,10.506]
[1773115440416,5.98757275,85.699,85.643,5.89306067]
[1773115440823,5.98757275,85.699,85.651,5.89306067]
[1773115442324,5.98757275,85.696,85.651,5.89306067]
[1773115443924,5.84527485,85.711,85.661,5.73301543]
[1773115444424,4.528644,85.71,85.661,5.73301543]
[1773115444624,4.528644,85.709,85.661,5.73301543]
[1773115444926,4.528644,85.708,85.661,5.73301543]
[1773115445119,4.528644,85.707,85.661,5.73301543]
[1773115445326,8.87032357,85.729,85.681,5.73301543]
[1773115445522,5.84527485,85.761,85.72,4.88004907]
[1773115445724,5.84527485,85.759,85.711,5.73301543]
[1773115446024,5.84527485,85.779,85.73,4.88004907]
[1773115446220,5.84527485,85.779,85.731,5.73301543]
[1773115446528,5.84527485,85.779,85.74,10.6130645]
[1773115446825,5.84527485,85.779,85.741,5.73301543]
[1773115447722,5.84527485,85.779,85.718,5.73301543]
[1773115447924,5.84527485,85.779,85.73,4.88004907]
[1773115448817,5.84527485,85.779,85.73,10.6130645]
[1773115449121,5.84527485,85.779,85.731,5.73301543]
[1773115449515,5.84527485,85.779,85.74,4.88004907]
[1773115449716,5.84527485,85.779,85.74,4.87070829]
[1773115452629,5.84527485,85.779,85.735,5.73301543]
[1773115453632,5.84527485,85.777,85.723,16.23101543]
[1773115454028,5.84527485,85.777,85.724,5.73301543]
[1773115454430,5.84527485,85.777,85.73,4.87070829]
[1773115454932,5.84527485,85.777,85.724,5.73301543]
[1773115455129,5.84527485,85.759,85.65,5.73301543]
[1773115455327,5.84527485,85.759,85.701,5.73301543]
[1773115455527,5.84527485,85.759,85.722,5.73301543]
[1773115455727,5.84527485,85.769,85.722,5.73301543]
[1773115456632,5.84527485,85.768,85.722,5.73301543]
[1773115457027,5.84527485,85.759,85.71,5.73301543]
[1773115457231,5.84527485,85.759,85.71,10.60372372]
[1773115457433,5.84527485,85.759,85.713,10.499]
[1773115457626,5.84527485,85.759,85.713,16.23201543]
[1773115458227,5.84527485,85.759,85.72,4.87070829]
[1773115458434,5.84527485,85.759,85.721,5.73301543]
[1773115458636,5.84527485,85.773,85.73,10.60372372]
[1773115458829,5.84527485,85.773,85.73,5.73301543]
[1773115459030,4.87070829,85.77,85.73,5.73301543]
[1773115459226,5.84527485,85.773,85.73,10.60372372]
[1773115459428,5.84527485,85.773,85.731,5.73301543]
[1773115460329,4.87070829,85.77,85.715,5.73301543]
[1773115460635,5.84527485,85.769,85.715,5.73301543]
[1773115461335,5.84527485,85.766,85.715,5.73301543]
[1773115461532,5.84527485,85.749,85.689,5.73301543]
[1773115461830,5.84527485,85.749,85.69,4.87070829]
[1773115462030,5.84527485,85.749,85.691,5.73301543]
[1773115462334,5.84527485,85.744,85.7,4.87070829]
[1773115462735,5.84527485,85.744,85.704,10.5]
[1773115463433,5.84527485,85.739,85.695,10.501]
[1773115463630,5.84527485,85.739,85.681,5.73301543]
[1773115464432,5.84527485,85.737,85.683,10.503]
[1773115465331,5.84527485,85.737,85.69,4.87070829]
[1773115466034,5.84527485,85.737,85.684,5.73301543]
[1773115466731,5.84527485,85.737,85.691,5.73301543]
[1773115468236,5.84527485,85.737,85.692,16.23501543]
[1773115468534,5.84527485,85.737,85.693,5.73301543]
[1773115468736,10.71598314,85.75,85.7,10.60372372]
[1773115468935,10.71598314,85.75,85.701,5.73301543]
[1773115468936,5.84527485,85.75,85.701,5.73301543]
[1773115469525,5.84527485,85.75,85.704,5.73301543]
[1773115470336,5.84527485,85.75,85.709,10.5]
[1773115471132,4.87070829,85.76,85.712,5.73301543]
[1773115471335,5.84527485,85.749,85.695,5.73301543]
[1773115471535,5.84527485,85.749,85.7,4.87070829]
[1773115471734,5.84527485,85.749,85.647,35.03]
[1773115471735,5.84527485,85.749,85.713,10.499]
[1773115471938,4.48468161,85.769,85.721,5.73301543]
[1773115472135,5.84527485,85.777,85.721,5.73301543]
[1773115472332,5.84527485,85.775,85.721,5.73301543]
[1773115472532,10.33079368,85.774,85.73,4.87070829]
[1773115472738,4.48551883,85.773,85.73,4.87070829]
[1773115473042,5.84527485,85.774,85.73,4.87070829]
[1773115473737,5.84527485,85.774,85.731,6.08010273]
[1773115475238,10.493,85.763,85.72,4.87070829]
[1773115475438,5.82626143,85.759,85.71,4.87070829]
[1773115475648,5.82626143,85.759,85.71,10.95081102]
[1773115476145,5.82626143,85.759,85.704,10.5]
[1773115476938,5.82626143,85.739,85.697,6.08010273]
[1773115479248,5.82626143,85.739,85.698,10.501]
[1773115480245,5.82626143,85.739,85.697,6.08010273]
[1773115480441,5.82626143,85.739,85.69,4.87070829]
[1773115480848,5.82626143,85.739,85.691,6.08010273]
[1773115482352,5.82626143,85.737,85.691,6.08010273]
[1773115483442,4.87070829,85.74,85.691,6.08010273]
[1773115483443,5.82626143,85.735,85.691,6.08010273]
[1773115483955,5.82626143,85.735,85.68,4.87070829]
[1773115483956,5.82626143,85.729,85.68,4.87070829]
[1773115484246,5.82626143,85.727,85.68,4.87070829]
[1773115484450,5.82626143,85.725,85.68,4.87070829]
[1773115486553,5.82626143,85.725,85.68,10.95081102]
[1773115486854,5.82626143,85.725,85.683,6.08010273]
[1773115487251,4.50876254,85.724,85.683,6.08010273]
[1773115487448,5.82626143,85.738,85.683,6.08010273]
[1773115487644,4.50923991,85.737,85.683,6.08010273]
[1773115487851,4.50923991,85.736,85.695,6.08010273]
[1773115488044,4.50923991,85.735,85.695,6.08010273]
[1773115488249,4.50923991,85.734,85.701,6.08010273]
[1773115488451,5.82626143,85.749,85.702,6.08010273]
[1773115488650,4.51340542,85.748,85.702,6.08010273]
[1773115488948,4.51340542,85.747,85.702,6.08010273]
[1773115489148,4.51340542,85.746,85.702,6.08010273]
[1773115489350,5.82626143,85.749,85.702,6.08010273]
[1773115489351,4.51340542,85.745,85.702,6.08010273]
[1773115489546,5.82626143,85.743,85.702,6.08010273]
[1773115489747,5.82626143,85.739,85.69,10.95081102]
[1773115490056,5.82626143,85.737,85.69,10.95081102]
[1773115490255,4.87070829,85.74,85.69,6.08010273]
[1773115490256,5.82626143,85.735,85.69,6.08010273]
[1773115490449,4.51340542,85.734,85.69,6.08010273]
[1773115490755,5.82626143,85.732,85.69,6.08010273]
[1773115490955,5.82626143,85.73,85.69,6.08010273]
[1773115491158,5.82626143,85.728,85.69,6.08010273]
[1773115491352,4.51340542,85.727,85.69,6.08010273]
[1773115491654,10.33966685,85.726,85.68,15.37370829]
[1773115491854,4.51340542,85.725,85.68,15.37370829]
[1773115492055,4.51340542,85.724,85.68,15.37370829]
[1773115492356,4.51340542,85.723,85.68,15.37370829]
[1773115492559,4.51340542,85.722,85.68,21.45381102]
[1773115492749,5.82626143,85.726,85.68,21.45381102]
[1773115492950,4.51496763,85.725,85.68,21.45381102]
[1773115493158,4.51496763,85.724,85.68,21.45381102]
[1773115493361,4.51496763,85.723,85.68,21.45381102]
[1773115493659,4.51496763,85.722,85.68,21.45381102]
[1773115493861,4.51496763,85.721,85.68,21.45381102]
[1773115494061,5.82626143,85.726,85.68,21.45381102]
[1773115494062,4.51496763,85.72,85.68,21.45381102]
[1773115494264,4.51496763,85.719,85.68,10.95081102]
[1773115494461,4.51496763,85.718,85.68,10.95081102]
[1773115494660,5.82626143,85.725,85.68,10.95081102]
[1773115494961,10.34104864,85.724,85.68,10.95081102]
[1773115495165,4.51478721,85.723,85.68,10.95081102]
[1773115495362,4.51478721,85.722,85.68,10.95081102]
[1773115495662,4.51478721,85.721,85.68,10.95081102]
[1773115495861,4.51478721,85.72,85.68,10.95081102]
[1773115496164,4.51478721,85.719,85.68,10.95081102]
[1773115496362,4.51478721,85.718,85.68,10.95081102]
[1773115496562,5.82626143,85.724,85.68,10.95081102]
[1773115496867,4.51539606,85.723,85.68,10.95081102]
[1773115497061,5.82626143,85.724,85.681,6.09428797]
[1773115497062,4.51539606,85.722,85.681,6.09428797]
[1773115497265,6.08355307,85.719,85.671,6.09428797]
[1773115497564,6.08355307,85.717,85.661,6.09428797]
[1773115497766,6.08355307,85.715,85.661,6.09428797]
[1773115497964,4.87070829,85.71,85.661,6.09428797]
[1773115498161,6.08355307,85.708,85.661,6.09428797]
[1773115498364,4.51539606,85.707,85.662,6.09428797]
[1773115498665,4.51539606,85.706,85.662,6.09428797]
[1773115498854,4.51539606,85.705,85.662,6.09428797]
[1773115499057,4.51539606,85.704,85.662,6.09428797]
[1773115499257,4.51539606,85.703,85.662,6.09428797]
[1773115499465,6.08355307,85.708,85.662,6.09428797]
[1773115499658,4.51195765,85.707,85.662,6.09428797]
[1773115499964,4.51195765,85.706,85.662,6.09428797]
[1773115500165,4.51195765,85.705,85.662,6.09428797]
[1773115500365,4.51195765,85.704,85.662,6.09428797]
[1773115500670,6.08355307,85.723,85.671,6.09428797]
[1773115500970,4.5127513,85.722,85.671,6.09428797]
[1773115501163,4.5127513,85.721,85.674,6.09428797]
[1773115501363,4.5127513,85.72,85.674,6.09428797]
[1773115501566,4.5127513,85.719,85.674,6.09428797]
[1773115501766,4.5127513,85.718,85.674,6.09428797]
[1773115501967,6.08355307,85.716,85.662,6.09428797]
[1773115502275,6.08355307,85.714,85.662,6.09428797]
[1773115502575,6.08355307,85.712,85.662,6.09428797]
[1773115502770,6.08355307,85.71,85.662,6.09428797]
[1773115503070,4.5127513,85.709,85.662,6.09428797]
[1773115503271,4.5127513,85.708,85.662,6.09428797]
[1773115503470,4.5127513,85.707,85.671,5.61042161]
[1773115503672,5.85847365,85.722,85.671,5.61042161]
[1773115503973,10.37520491,85.721,85.671,5.61042161]
[1773115504174,5.85847365,85.719,85.68,10.503]
[1773115504369,5.85847365,85.717,85.671,5.61042161]
[1773115504574,4.51673126,85.716,85.671,5.61042161]
[1773115504770,4.51673126,85.715,85.671,5.61042161]
[1773115505066,4.51673126,85.714,85.671,16.11442161]
[1773115505371,5.85847365,85.717,85.671,16.11442161]
[1773115505372,4.51673126,85.713,85.671,16.11442161]
[1773115505572,4.51673126,85.712,85.671,16.11442161]
[1773115505774,4.51673126,85.711,85.671,16.11442161]
[1773115505977,4.51673126,85.71,85.673,10.504]
[1773115506179,4.51673126,85.709,85.673,10.504]
[1773115506474,5.85847365,85.717,85.673,10.504]
[1773115506668,10.37727562,85.716,85.673,10.504]
[1773115506974,5.85847365,85.714,85.673,10.504]
[1773115507175,4.51880197,85.713,85.673,10.504]
[1773115507478,4.51880197,85.712,85.673,10.504]
[1773115507670,5.85847365,85.714,85.673,10.504]
[1773115507866,4.51966262,85.713,85.673,10.504]
[1773115508072,4.51966262,85.712,85.673,10.504]
[1773115508273,5.85847365,85.714,85.673,10.504]
[1773115508473,4.51834476,85.713,85.673,10.504]
[1773115508673,4.51834476,85.712,85.673,10.504]
[1773115508875,5.85847365,85.714,85.673,16.11442161]
[1773115509176,4.51812043,85.713,85.673,16.11442161]
[1773115509377,5.85847365,85.714,85.673,16.11442161]
[1773115509572,4.51782506,85.713,85.673,16.11442161]
[1773115509773,5.85847365,85.714,85.674,5.61042161]
[1773115509969,4.51782506,85.713,85.674,5.61042161]
[1773115510175,5.85847365,85.714,85.674,5.61042161]
[1773115510476,4.51753405,85.713,85.674,5.61042161]
[1773115510670,5.85847365,85.714,85.674,5.61042161]
[1773115510867,4.51753405,85.713,85.674,5.61042161]
[1773115511070,5.85847365,85.711,85.673,10.504]
[1773115511769,10.73772034,85.71,85.662,5.61042161]
[1773115511976,4.87924669,85.7,85.662,5.61042161]
[1773115512876,5.85847365,85.709,85.662,5.61042161]
[1773115513077,5.85847365,85.707,85.662,5.61042161]
[1773115513280,5.85847365,85.705,85.662,5.61042161]
[1773115513478,5.85847365,85.703,85.662,5.61042161]
[1773115513678,4.51508961,85.702,85.662,5.61042161]
[1773115513877,5.85847365,85.703,85.662,5.61042161]
[1773115514080,4.51420809,85.702,85.662,5.61042161]
[1773115514278,5.85847365,85.703,85.662,5.61042161]
[1773115514780,8.76565461,85.742,85.65,4.87924669]
[1773115514781,5.85847365,85.697,85.65,5.61042161]
[1773115514983,5.85847365,85.697,85.651,5.61042161]
[1773115515977,5.85847365,85.712,85.661,5.61042161]
[1773115516178,14.07593339,85.764,85.661,5.61042161]
[1773115516179,10.37131957,85.711,85.661,5.61042161]
[1773115516477,4.51284592,85.71,85.661,5.61042161]
[1773115516678,4.51284592,85.709,85.661,5.61042161]
[1773115516982,5.85847365,85.725,85.671,5.61042161]
[1773115517281,5.85847365,85.725,85.619,21.022]
[1773115517282,4.47206985,85.724,85.681,5.61042161]
[1773115517580,4.47206985,85.723,85.681,5.61042161]
[1773115517779,4.47206985,85.722,85.681,5.61042161]
[1773115517982,4.47206985,85.721,85.681,5.61042161]
[1773115518185,4.47206985,85.72,85.681,5.61042161]
[1773115518484,4.47206985,85.719,85.684,10.503]
[1773115518680,4.47206985,85.718,85.684,10.503]
[1773115518881,5.85847365,85.725,85.684,10.503]
[1773115519184,4.47499522,85.724,85.684,10.503]
[1773115519383,4.47499522,85.723,85.684,10.503]
[1773115519583,4.47499522,85.722,85.684,10.503]
[1773115519883,4.47499522,85.721,85.684,10.503]
[1773115520082,4.47499522,85.72,85.684,10.503]
[1773115520282,5.85847365,85.718,85.67,4.87924669]
[1773115520483,5.85847365,85.709,85.652,5.61042161]
[1773115520688,5.85847365,85.699,85.652,5.61042161]
[1773115520989,4.47499522,85.698,85.652,5.61042161]
[1773115521187,5.85847365,85.699,85.65,4.87924669]
[1773115521188,4.47499522,85.697,85.664,10.505]
[1773115521388,5.85847365,85.711,85.665,5.61042161]
[1773115521684,4.47760775,85.71,85.671,5.61042161]
[1773115521886,4.47760775,85.709,85.671,5.61042161]
[1773115522088,4.47760775,85.708,85.672,16.11442161]
[1773115522288,4.47760775,85.707,85.672,16.11442161]
[1773115522490,4.47760775,85.706,85.672,16.11442161]
[1773115522691,4.47760775,85.705,85.672,16.11442161]
[1773115522888,4.47760775,85.704,85.672,16.11442161]
[1773115523191,4.47760775,85.703,85.672,5.61042161]
[1773115523390,4.47760775,85.702,85.672,5.61042161]
[1773115523591,4.47760775,85.701,85.672,5.61042161]
[1773115523791,4.47760775,85.7,85.672,5.61042161]
[1773115523992,5.85847365,85.698,85.659,5.61042161]
[1773115524186,4.47760775,85.697,85.659,5.61042161]
[1773115524392,4.47760775,85.696,85.659,5.61042161]
[1773115524587,4.47760775,85.695,85.659,5.61042161]
[1773115524785,4.47760775,85.694,85.645,5.61042161]
[1773115524985,10.3360814,85.693,85.645,5.61042161]
[1773115525193,4.47760775,85.692,85.645,5.61042161]
[1773115525396,4.47760775,85.691,85.645,5.61042161]
[1773115525596,5.85847365,85.689,85.64,4.87924669]
[1773115525785,5.85847365,85.679,85.629,5.61042161]
[1773115525986,10.33663551,85.678,85.629,5.61042161]
[1773115526191,5.85847365,85.676,85.629,5.61042161]
[1773115526395,4.47816186,85.675,85.629,5.61042161]
[1773115526594,4.47816186,85.674,85.629,5.61042161]
[1773115526896,4.47816186,85.673,85.629,5.61042161]
[1773115527091,4.47816186,85.672,85.629,5.61042161]
[1773115527292,5.85847365,85.676,85.629,5.61042161]
[1773115527492,4.47501702,85.675,85.629,5.61042161]
[1773115527688,5.85847365,85.669,85.617,10.511]
[1773115527895,5.85847365,85.667,85.621,5.61042161]
[1773115528096,4.47501702,85.666,85.621,5.61042161]
[1773115528389,4.47501702,85.665,85.621,5.61042161]
[1773115528596,4.87924669,85.66,85.605,5.61042161]
[1773115528791,10.3313842,85.659,85.611,5.61042161]
[1773115528993,10.73772034,85.65,85.611,5.61042161]
[1773115529698,5.85847365,85.65,85.611,5.61042161]
[1773115530095,5.85847365,85.647,85.596,5.61042161]
[1773115530291,5.85847365,85.647,85.6,10.4896683]
[1773115530488,5.85847365,85.647,85.601,5.61042161]
[1773115530893,5.85847365,85.647,85.602,16.12342161]
[1773115531094,5.85847365,85.647,85.602,5.61042161]
[1773115534604,5.85847365,85.647,85.61,4.87924669]
[1773115536698,5.85847365,85.647,85.604,5.807168]
[1773115537497,6.24450304,85.639,85.588,5.807168]
[1773115537702,6.24450304,85.639,85.591,5.807168]
[1773115538305,6.24450304,85.639,85.593,5.807168]
[1773115538506,6.24450304,85.639,85.6,4.87924669]
[1773115538698,6.24450304,85.639,85.6,10.68641469]
[1773115538904,6.24450304,85.652,85.602,5.807168]
[1773115540509,6.24450304,85.665,85.611,5.807168]
[1773115540707,6.24450304,85.663,85.611,5.807168]
[1773115541412,6.24450304,85.663,85.615,5.807168]
[1773115542904,6.24450304,85.663,85.621,5.807168]
[1773115543106,6.24450304,85.674,85.63,4.87924669]
[1773115543304,4.45047005,85.673,85.63,4.87924669]
[1773115543514,4.45047005,85.672,85.63,4.87924669]
[1773115543713,4.45047005,85.671,85.63,4.87924669]
[1773115544012,4.45047005,85.67,85.63,4.87924669]
[1773115544306,6.24450304,85.674,85.63,4.87924669]
[1773115544807,8.76491836,85.721,85.566,21.035]
[1773115544808,6.24450304,85.687,85.641,5.807168]
[1773115545712,6.24450304,85.687,85.64,4.87924669]
[1773115546916,6.24450304,85.685,85.64,4.87924669]
[1773115547310,6.24450304,85.685,85.64,10.68641469]
[1773115548311,6.24450304,85.685,85.645,10.507]
[1773115548706,10.62045469,85.736,85.589,21.029]
[1773115548707,6.24450304,85.698,85.651,5.807168]
[1773115548917,6.24450304,85.698,85.66,4.87924669]
[1773115549409,10.62045469,85.76,85.662,5.807168]
[1773115549410,6.24450304,85.712,85.662,5.807168]
[1773115549611,6.24450304,85.712,85.671,5.807168]
[1773115553422,6.24450304,85.712,85.68,4.87924669]
[1773115553718,6.24450304,85.712,85.674,16.61312033]
[1773115557114,6.24450304,85.712,85.68,4.87924669]
[1773115557318,6.15864059,85.724,85.68,4.87924669]
[1773115557820,6.15864059,85.724,85.681,6.10912033]
[1773115558118,6.15864059,85.724,85.69,4.87924669]
[1773115558317,6.15864059,85.724,85.613,21.023]
[1773115558318,6.15864059,85.736,85.693,6.10912033]
[1773115560528,6.15864059,85.736,85.691,6.10912033]
[1773115561031,6.15864059,85.729,85.682,10.503]
[1773115562032,6.15864059,85.719,85.67,4.87924669]
[1773115562335,6.15864059,85.709,85.65,4.87924669]
[1773115562639,6.15864059,85.709,85.661,10.505]
[1773115563038,6.15864059,85.709,85.661,16.61412033]
[1773115564443,6.22290577,85.724,85.68,4.87924669]
[1773115564643,6.22290577,85.724,85.68,10.86104554]
[1773115566443,6.22290577,85.724,85.681,10.503]
[1773115566640,6.22290577,85.719,85.671,5.98179885]
[1773115568440,4.87924669,85.7,85.65,4.87924669]
[1773115568638,6.22290577,85.699,85.65,4.87924669]
[1773115568839,6.22290577,85.699,85.651,5.98179885]
[1773115569337,6.22290577,85.712,85.662,5.98179885]
[1773115570341,6.22290577,85.712,85.67,4.87924669]
[1773115571245,6.22290577,85.712,85.662,5.98179885]
[1773115571643,4.87969667,85.71,85.662,5.98179885]
[1773115571840,6.22290577,85.706,85.662,5.98179885]
[1773115572851,6.22290577,85.706,85.665,10.505]
[1773115575351,6.22290577,85.706,85.665,16.48679885]
[1773115575549,6.22290577,85.706,85.666,5.98179885]
[1773115585260,4.44249668,85.705,85.666,5.98179885]
[1773115585461,4.44249668,85.704,85.666,5.98179885]
[1773115585660,6.22290577,85.706,85.666,5.98179885]
[1773115585861,4.44287936,85.705,85.666,5.98179885]
[1773115586062,4.44287936,85.704,85.666,5.98179885]
[1773115586261,4.44287936,85.703,85.666,5.98179885]
[1773115586462,4.44287936,85.702,85.666,5.98179885]
[1773115586664,6.22290577,85.706,85.666,5.98179885]
[1773115586858,6.22290577,85.704,85.666,5.98179885]
[1773115587065,4.44493094,85.703,85.666,5.98179885]
[1773115587264,4.44493094,85.702,85.666,5.98179885]
[1773115587463,4.44493094,85.701,85.666,5.98179885]
[1773115587663,4.44493094,85.7,85.666,5.98179885]
[1773115587862,6.22290577,85.704,85.666,5.98179885]
[1773115588058,4.44740657,85.703,85.666,5.98179885]
[1773115588267,4.44740657,85.702,85.666,5.98179885]
[1773115588464,4.44740657,85.701,85.666,5.98179885]
[1773115588665,4.44740657,85.7,85.666,5.98179885]
[1773115588863,4.44740657,85.699,85.666,5.98179885]
[1773115589063,6.22290577,85.704,85.666,5.98179885]
[1773115589264,4.4513793,85.703,85.666,5.98179885]
[1773115589463,4.4513793,85.702,85.666,5.98179885]
[1773115589668,4.4513793,85.701,85.666,5.98179885]
[1773115589862,4.4513793,85.7,85.666,5.98179885]
[1773115590061,4.4513793,85.699,85.666,5.98179885]
[1773115590266,4.4513793,85.698,85.666,5.98179885]
[1773115590567,4.4513793,85.697,85.666,5.98179885]
[1773115590867,4.4513793,85.696,85.666,5.98179885]
[1773115591068,6.22290577,85.704,85.666,5.98179885]
[1773115591267,4.45381685,85.703,85.666,5.98179885]
[1773115591469,4.45381685,85.702,85.666,5.98179885]
[1773115591672,4.45381685,85.701,85.666,5.98179885]
[1773115591874,6.22290577,85.689,85.641,5.98179885]
[1773115592059,20.994,85.733,85.641,5.98179885]
[1773115592060,11.10260244,85.68,85.641,5.98179885]
[1773115592259,4.45381685,85.679,85.641,5.98179885]
[1773115592463,4.45381685,85.678,85.641,5.98179885]
[1773115592669,4.45300032,85.677,85.641,5.98179885]
[1773115592969,4.45300032,85.676,85.641,5.98179885]
[1773115593167,4.45300032,85.675,85.641,5.98179885]
[1773115593468,4.45300032,85.674,85.641,16.48979885]
[1773115593766,6.22290577,85.68,85.641,16.48979885]
[1773115593967,4.45521537,85.679,85.641,16.48979885]
[1773115594166,4.45521537,85.678,85.648,5.9315287]
[1773115594463,6.18550318,85.692,85.651,5.9315287]
[1773115594669,4.4556201,85.691,85.651,5.9315287]
[1773115594968,4.4556201,85.69,85.651,5.9315287]
[1773115595161,4.4556201,85.689,85.651,5.9315287]
[1773115595361,4.4556201,85.688,85.654,5.9315287]
[1773115595569,4.4556201,85.687,85.654,5.9315287]
[1773115595767,4.4556201,85.686,85.654,5.9315287]
[1773115595966,4.4556201,85.685,85.66,4.87969667]
[1773115596165,6.18550318,85.705,85.66,4.87969667]
[1773115596369,6.18550318,85.689,85.641,5.9315287]
[1773115596669,10.6416831,85.688,85.643,5.9315287]
[1773115596870,4.45617992,85.687,85.643,5.9315287]
[1773115597167,6.18550318,85.688,85.65,4.87969667]
[1773115597168,4.45540816,85.686,85.65,4.87969667]
[1773115597367,4.45540816,85.685,85.65,4.87969667]
[1773115597667,4.45540816,85.684,85.65,4.87969667]
[1773115597867,4.45540816,85.683,85.65,4.87969667]